bitfinex/quotes_ETHUSD_20250726
["timestamp","ask_amount","ask_price","bid_price","bid_amount"]
[1753493755827,0.4992,3720.0,3719.9,4.2]
[1753493756025,0.4992,3720.0,3719.8,2.68830883]
[1753493757330,0.4992,3720.0,3719.8,2.89277193]
[1753493758463,0.4992,3720.0,3719.8,0.2044631]
[1753493758661,0.4992,3720.0,3719.8,2.68830211]
[1753493759565,0.53169586,3720.2,3719.8,2.68830211]
[1753493759771,0.79586959,3720.1,3719.8,2.68830211]
[1753493759938,0.29666959,3720.1,3719.8,2.68830211]
[1753493760132,0.4992,3720.0,3719.8,2.68830211]
[1753493760935,0.29666959,3720.1,3719.9,2.68822589]
[1753493761140,0.29666959,3720.1,3719.8,3.15019203]
[1753493761361,0.29666959,3720.1,3719.9,0.4583]
[1753493761665,0.29666959,3720.1,3719.8,3.15019203]
[1753493761870,0.79586959,3720.1,3719.8,3.15019203]
[1753493762174,0.79586959,3720.1,3719.8,3.60849203]
[1753493763178,0.29666959,3720.1,3719.8,2.68829203]
[1753493763376,0.29666959,3720.1,3719.9,3.60843451]
[1753493763563,0.1344,3720.2,3720.0,0.9202]
[1753493769585,0.1344,3720.2,3720.0,0.4583]
[1753493769793,0.4992,3720.1,3719.8,3.35404893]
[1753493769970,0.4992,3720.1,3719.8,3.15019153]
[1753493770993,0.4992,3720.1,3719.9,2.68823747]
[1753493771491,0.4992,3720.1,3719.7,2.82274637]
[1753493771679,0.35343,3720.1,3719.7,2.82274637]
[1753493771990,0.4992,3720.0,3719.7,2.8227853]
[1753493772159,0.81913,3720.1,3719.8,2.68830929]
[1753493772360,0.4992,3719.9,3719.8,2.68830929]
[1753493772590,0.35343,3720.1,3719.8,2.68830929]
[1753493772966,0.4992,3720.0,3719.8,2.68830929]
[1753493773497,0.4992,3720.0,3719.8,2.89109703]
[1753493774295,0.35343,3720.1,3719.8,3.81129703]
[1753493774593,0.85263,3720.1,3719.8,3.81129703]
[1753493778895,0.35343,3720.1,3719.8,3.81129703]
[1753493779392,0.85263,3720.1,3719.8,3.81129703]
[1753493780086,0.85263,3720.1,3719.8,1.12298774]
[1753493781372,0.73995061,3720.0,3719.8,0.20278774]
[1753493781584,1.22525061,3720.0,3719.6,4.2]
[1753493781790,0.4853,3719.9,3719.6,4.2]
[1753493782305,2.68831957,3719.8,3719.3,4.75]
[1753493782472,0.4853,3719.7,3719.4,0.1344]
[1753493782674,1.2285,3719.8,3719.4,0.1344]
[1753493782877,0.4853,3719.6,3719.4,0.1344]
[1753493783494,1.56826422,3719.8,3719.4,1.0699]
[1753493783695,0.4853,3719.7,3719.4,1.0699]
[1753493784916,0.4853,3719.7,3719.4,3.75850078]
[1753493785087,0.4853,3719.7,3719.4,1.0699]
[1753493787416,0.4853,3719.6,3719.4,0.1344]
[1753493791124,2.68842475,3719.7,3719.4,0.1344]
[1753493791447,0.4853,3719.5,3719.3,4.40635816]
[1753493791624,0.4853,3719.5,3719.3,0.20635816]
[1753493791836,0.4853,3719.5,3719.2,4.3344]
[1753493792036,0.4853,3719.5,3719.2,5.2699]
[1753493795023,0.4853,3718.9,3718.6,0.9355]
[1753493795221,0.1344,3719.0,3718.5,0.1344]
[1753493795425,0.4853,3718.8,3718.5,0.33271662]
[1753493796614,0.4853,3718.8,3718.5,0.19831662]
[1753493796814,0.4853,3718.8,3718.4,4.0699]
[1753493797541,0.4853,3718.8,3718.4,3.0]
[1753493797749,0.4853,3718.7,3718.3,3.1344]
[1753493797957,0.4853,3718.6,3718.3,6.5049]
[1753493798121,0.4853,3718.6,3718.3,3.5049]
[1753493799352,0.4853,3718.6,3718.3,3.7037436]
[1753493799558,0.6197,3718.8,3718.4,3.62481266]
[1753493799753,0.1344,3718.8,3718.5,0.4653]
[1753493799926,0.1344,3718.8,3718.6,0.9355]
[1753493801257,0.1344,3718.8,3718.3,3.02262678]
[1753493801258,1.7549,3718.7,3718.3,0.1988436]
[1753493801555,0.1344,3718.5,3718.1,5.435]
[1753493801755,0.6197,3718.5,3718.2,0.9355]
[1753493802550,0.1344,3718.5,3718.2,1.13416199]
[1753493802732,0.1344,3718.5,3718.3,0.9355]
[1753493805663,1.27669623,3718.5,3718.1,3.9355]
[1753493805840,1.27669623,3718.5,3718.1,3.0]
[1753493806160,0.79139623,3718.5,3718.2,0.9355]
[1753493806364,0.79139623,3718.5,3718.2,1.13667718]
[1753493806525,0.79139623,3718.5,3718.2,0.66647718]
[1753493806723,0.79139623,3718.5,3718.3,0.4702]
[1753493806962,0.79139623,3718.5,3718.3,0.9355]
[1753493807126,0.1344,3718.5,3718.3,2.68939757]
[1753493807327,3.49254944,3719.0,3718.4,3.62482874]
[1753493807626,0.4853,3719.2,3718.6,2.68917429]
[1753493807627,0.1344,3718.9,3718.6,2.68917429]
[1753493807826,0.8036,3719.3,3718.7,0.9355]
[1753493808134,2.435,3719.2,3718.9,2.68891697]
[1753493808344,2.435,3719.2,3719.0,0.9355]
[1753493808744,2.435,3719.2,3719.0,3.62439025]
[1753493809069,2.435,3719.2,3719.1,0.9355]
[1753493809764,0.1344,3719.3,3719.1,0.9355]
[1753493809963,2.435,3719.4,3719.3,2.68861844]
[1753493810133,0.1344,3719.6,3719.3,2.68861844]
[1753493810454,0.1344,3719.6,3719.4,0.9422]
[1753493810654,0.52194,3719.6,3719.4,0.9422]
[1753493810831,0.52194,3719.6,3719.3,2.68861844]
[1753493811166,0.52194,3719.6,3719.4,0.9422]
[1753493811667,3.874,3720.0,3719.2,0.5768875]
[1753493811850,2.5694,3719.9,3719.5,0.9422]
[1753493812166,3.0545,3719.9,3719.5,0.9422]
[1753493812366,0.8209,3719.7,3718.4,4.2]
[1753493812542,2.68891042,3719.0,3718.3,2.68940107]
[1753493812761,3.05985649,3718.9,3718.2,2.68945871]
[1753493812963,3.53045649,3718.9,3718.2,2.68945871]
[1753493813167,0.4851,3718.8,3718.2,2.68945871]
[1753493813495,0.4706,3718.7,3718.1,2.6895341]
[1753493813790,0.4706,3718.7,3718.0,6.63179903]
[1753493813791,1.275,3718.6,3718.0,6.63179903]
[1753493813989,1.275,3718.6,3718.0,6.83171804]
[1753493816300,2.2933555,3718.6,3718.0,4.14211901]
[1753493816485,0.4851,3718.5,3718.0,4.14211901]
[1753493816680,0.4851,3718.5,3718.0,3.65691901]
[1753493816860,0.4851,3718.4,3718.0,0.19991901]
[1753493817055,0.4851,3718.4,3717.9,3.0]
[1753493817261,0.54532197,3718.3,3717.9,3.0]
[1753493817594,0.4851,3718.2,3717.9,0.20536501]
[1753493817790,0.4851,3718.2,3717.8,3.9422]
[1753493818376,0.4851,3718.2,3717.8,3.4852]
[1753493818571,0.54532197,3718.3,3717.4,3.0]
[1753493818772,3.03508678,3718.2,3717.5,2.44]
[1753493819012,0.4851,3718.1,3717.5,9.27298898]
[1753493820198,0.4851,3718.1,3717.7,3.0]
[1753493820733,0.4851,3718.1,3717.7,3.9422]
[1753493821189,0.4851,3718.1,3717.8,0.9422]
[1753493821816,0.3455922,3718.2,3717.9,0.9422]
[1753493822108,0.3455922,3718.2,3717.7,0.55]
[1753493822309,2.44,3718.5,3717.8,0.9422]
[1753493822499,0.1344,3718.3,3717.9,0.9422]
[1753493822701,0.1344,3718.3,3718.0,0.9422]
[1753493823008,0.7899,3718.6,3718.1,0.9422]
[1753493823190,0.80799,3718.5,3718.1,1.0766]
[1753493823393,0.4851,3718.4,3717.9,0.55]
[1753493823578,0.4851,3718.4,3718.0,2.82400395]
[1753493823771,0.79349,3718.5,3717.8,2.439]
[1753493823772,3.48279069,3718.5,3717.8,2.439]
[1753493824087,0.1344,3718.3,3717.8,0.1344]
[1753493824419,0.4851,3718.2,3717.8,2.5744]
[1753493824579,0.605,3718.3,3717.8,2.5744]
[1753493824779,0.4851,3718.2,3717.8,2.5744]
[1753493824980,0.4851,3718.2,3717.8,3.5166]
[1753493825335,0.4851,3718.2,3717.8,6.20635106]
[1753493825791,0.4851,3718.2,3717.9,2.68967443]
[1753493825994,0.4851,3718.2,3717.9,3.14667443]
[1753493826181,0.1344,3718.3,3717.9,3.63187443]
[1753493826381,1.15420709,3718.3,3717.9,3.63187443]
[1753493826883,1.15420709,3718.3,3717.9,2.68967443]
[1753493827083,1.15420709,3718.3,3718.0,0.9422]
[1753493828005,1.15420709,3718.3,3718.0,0.457]
[1753493829107,1.15420709,3718.3,3717.8,3.7663442]
[1753493829509,1.15420709,3718.3,3717.9,0.9422]
[1753493829815,0.46369598,3718.2,3717.9,0.9422]
[1753493830013,0.94879598,3718.2,3717.9,0.9422]
[1753493830513,0.7704,3718.0,3717.8,4.2]
[1753493830813,0.4851,3717.9,3717.8,4.2]
[1753493832115,0.7704,3718.0,3717.8,4.2]
[1753493832321,1.2555,3718.0,3717.8,4.2]
[1753493833282,0.4851,3717.9,3717.8,4.2]
[1753493833783,0.7704,3718.0,3717.8,4.2]
[1753493834018,1.2555,3718.0,3717.8,4.2]
[1753493834982,0.1344,3718.1,3717.8,5.1422]
[1753493835495,0.1344,3717.9,3717.8,4.2]
[1753493835893,0.40929062,3718.1,3717.8,5.1422]
[1753493836100,0.1344,3718.0,3717.9,0.9422]
[1753493836823,0.1344,3718.0,3717.9,0.457]
[1753493837319,0.1344,3718.0,3717.7,0.9422]
[1753493837625,0.1344,3718.0,3717.8,0.9422]
[1753493837842,0.8310613,3718.0,3717.8,0.9422]
[1753493838398,0.8310613,3718.0,3717.9,0.457]
[1753493838616,0.8310613,3718.0,3717.9,0.9422]
[1753493839528,0.8310613,3718.0,3717.9,0.457]
[1753493839726,0.8310613,3718.0,3717.7,0.9422]
[1753493840029,0.8310613,3718.0,3717.8,0.9422]
[1753493840338,0.65644519,3717.9,3717.6,0.9423]
[1753493840626,0.17254519,3717.9,3717.6,0.9423]
[1753493840826,0.17254519,3717.9,3717.6,0.4974]
[1753493841023,0.17254519,3717.9,3717.6,0.9423]
[1753493843925,0.65644519,3717.9,3717.6,0.9423]
[1753493846855,0.17254519,3717.9,3717.6,2.68989993]
[1753493847030,0.1344,3718.0,3717.7,0.9423]
[1753493847348,0.1344,3718.0,3717.6,2.68989993]
[1753493847545,0.1344,3718.0,3717.7,0.9423]
[1753493847749,0.1344,3718.1,3717.8,2.68976276]
[1753493847955,0.1344,3718.1,3717.9,2.68962169]
[1753493848128,0.1344,3718.1,3718.0,0.9423]
[1753493851253,0.4839,3719.0,3718.0,3.63191807]
[1753493851421,0.1344,3718.4,3718.2,2.6894263]
[1753493851615,0.1344,3718.4,3718.3,0.9423]
[1753493851847,3.7384,3718.9,3718.3,0.9423]
[1753493852016,0.1344,3718.7,3718.3,0.9423]
[1753493852221,0.1344,3718.7,3718.4,0.9423]
[1753493852423,0.1344,3718.7,3718.4,3.63161402]
[1753493852657,0.1344,3718.7,3718.4,0.9423]
[1753493853021,0.1344,3718.7,3718.4,3.6316192]
[1753493853359,0.77812432,3718.7,3718.4,3.6316192]
[1753493853652,0.8226,3718.6,3718.2,0.1344]
[1753493853859,0.1344,3718.4,3718.0,2.441]
[1753493854157,0.9471,3718.3,3717.9,2.82407251]
[1753493854450,0.4839,3718.3,3718.0,2.68961344]
[1753493854633,0.67431,3718.3,3718.0,2.68961344]
[1753493856034,0.67431,3718.3,3718.1,0.25203894]
[1753493856237,0.67431,3718.3,3718.0,2.68961344]
[1753493856238,0.67431,3718.3,3718.2,0.25203894]
[1753493859659,1.13751,3718.3,3718.2,0.25203894]
[1753493860365,3.82691107,3718.3,3718.2,0.25203894]
[1753493861530,3.36371107,3718.3,3718.2,0.25203894]
[1753493863540,3.36371107,3718.3,3718.2,0.25209255]
[1753493864268,4.63991107,3718.3,3718.2,0.25209255]
[1753493865156,2.68975436,3717.9,3717.5,0.20084529]
[1753493865350,3.36208769,3717.9,3717.4,0.1344]
[1753493865746,3.1736849,3717.8,3717.4,1.0767]
[1753493865943,3.9866849,3717.8,3717.4,0.1344]
[1753493866128,0.4839,3717.7,3717.4,0.1344]
[1753493866353,0.4839,3717.6,3717.4,0.1344]
[1753493866972,3.5027849,3717.8,3717.5,0.252036]
[1753493867267,0.4839,3717.8,3717.6,0.252036]
[1753493867476,0.4839,3717.8,3717.7,0.252036]
[1753493869276,0.67233333,3717.9,3717.7,1.194336]
[1753493869461,0.67233333,3717.9,3717.8,1.194336]
[1753493870042,3.84862374,3717.9,3717.8,0.252036]
[1753493872943,1.15893333,3717.9,3717.8,0.252036]
[1753493873143,3.84862374,3717.9,3717.8,0.252036]
[1753493873782,0.67233333,3717.9,3717.8,0.252036]
[1753493876554,0.67233333,3717.9,3717.8,1.168736]
[1753493876749,0.1344,3717.9,3717.8,1.168736]
[1753493877594,0.1344,3717.9,3717.8,0.252036]
[1753493877956,0.621,3717.9,3717.4,0.1344]
[1753493878170,0.1344,3717.7,3717.5,0.25184058]
[1753493878358,0.1344,3717.7,3717.6,0.25184058]
[1753493878560,0.621,3717.7,3717.6,0.25184058]
[1753493879347,1.07781644,3717.7,3717.6,0.25184058]
[1753493879550,1.07781644,3717.7,3717.3,0.9167]
[1753493879783,1.07781644,3717.7,3717.4,0.9167]
[1753493880189,3.76765942,3717.7,3717.4,0.9167]
[1753493880408,0.4866,3717.6,3717.2,3.3557]
[1753493880544,0.4866,3717.6,3717.3,0.25183185]
[1753493880749,0.4866,3717.6,3717.4,0.25183185]
[1753493880985,0.4866,3717.6,3717.5,0.25183185]
[1753493881190,0.98909937,3717.6,3717.5,0.25183185]
[1753493883186,0.98909937,3717.6,3717.5,0.25183614]
[1753493883385,0.50249937,3717.6,3717.5,0.25183614]
[1753493883994,0.98909937,3717.6,3717.5,0.25183614]
[1753493884219,0.4866,3717.6,3717.5,0.25183614]
[1753493884708,0.1344,3717.7,3717.5,0.25183614]
[1753493884914,0.1344,3717.7,3717.3,0.9167]
[1753493884915,0.621,3717.7,3717.6,0.25183614]
[1753493886083,0.1344,3717.7,3717.6,0.25183614]
[1753493886624,0.621,3717.7,3717.6,0.25183614]
[1753493886829,1.27574159,3717.7,3717.6,0.25183614]
[1753493887615,0.78914159,3717.7,3717.6,0.25183614]
[1753493887979,0.78914159,3717.7,3717.6,1.16853614]
[1753493888135,0.1344,3717.7,3717.6,1.16853614]
[1753493889342,0.1344,3717.7,3717.6,1.16865797]
[1753493892734,0.1344,3717.7,3717.6,0.69505797]
[1753493892967,0.1344,3717.7,3717.6,0.25195797]
[1753493894845,0.1344,3717.7,3717.6,1.16865797]
[1753493895223,0.1344,3717.7,3717.6,1.16884268]
[1753493896540,0.1344,3717.7,3717.6,0.69524268]
[1753493896708,0.1344,3717.7,3717.6,0.25214268]
[1753493898649,0.621,3717.7,3717.6,0.25214268]
[1753493898826,0.1344,3717.7,3717.6,0.25214268]
[1753493904054,0.1344,3717.7,3717.6,0.25221492]
[1753493905268,0.1344,3717.7,3717.6,2.94212238]
[1753493905424,2.438,3718.0,3717.7,2.68978867]
[1753493905625,0.1344,3717.9,3717.8,0.25221492]
[1753493905827,0.1344,3717.9,3717.8,1.14201492]
[1753493908931,0.1344,3717.9,3717.8,3.83177768]
[1753493909266,0.1344,3717.9,3717.8,1.14201492]
[1753493913473,0.1344,3717.9,3717.8,0.69131492]
[1753493913674,0.1344,3717.9,3717.8,0.25221492]
[1753493914064,0.1344,3717.9,3717.8,1.14201492]
[1753493916269,0.1344,3717.9,3717.8,0.25221492]
[1753493916438,0.6198,3717.9,3717.8,0.25221492]
[1753493916646,0.9507299,3717.9,3717.8,0.25221492]
[1753493917990,0.6198,3717.9,3717.8,0.25221492]
[1753493922687,3.75329041,3717.9,3717.8,0.25221492]
[1753493925267,2.68979579,3717.8,3717.4,2.437]
[1753493925615,0.1344,3717.7,3717.5,0.25216973]
[1753493925781,0.1344,3717.7,3717.6,0.25216973]
[1753493926094,0.6198,3717.7,3717.6,0.25216973]
[1753493928987,0.1344,3717.7,3717.6,1.14196973]
[1753493930190,0.1344,3717.7,3717.6,0.69126973]
[1753493934501,0.1344,3717.7,3717.6,0.25216973]
[1753493938307,0.1344,3717.7,3717.6,0.69396973]
[1753493939310,0.1344,3717.7,3717.6,0.25216973]
[1753493942330,0.1344,3717.7,3717.6,1.16876973]
[1753493943411,0.1344,3717.7,3717.6,1.16877362]
[1753493944123,0.1344,3717.7,3717.6,0.25217362]
[1753493944531,0.6032,3717.7,3717.6,0.25217362]
[1753493946028,3.29303511,3717.7,3717.6,0.25217362]
[1753493946209,3.66608622,3717.7,3717.6,0.25217362]
[1753493946611,0.97625111,3717.7,3717.6,0.25217362]
[1753493946921,0.6032,3717.7,3717.6,0.25217362]
[1753493947893,3.73063511,3717.7,3717.6,0.25217362]
[1753493949228,4.48283511,3717.7,3717.6,0.25217362]
[1753493955939,6.91983511,3717.7,3717.6,0.25217362]
[1753493957110,2.69014206,3717.3,3716.9,0.4748]
[1753493957324,0.1344,3717.0,3716.9,0.4748]
[1753493957609,0.1344,3717.0,3716.6,3.48830838]
[1753493958131,0.1344,3717.0,3716.7,0.9166]
[1753493958522,0.1344,3717.0,3716.6,3.48830838]
[1753493958721,0.1344,3717.0,3716.8,0.9166]
[1753493959748,0.1344,3717.0,3716.9,0.9166]
[1753493962722,2.82475461,3717.0,3716.6,0.7977]
[1753493963073,0.1344,3716.8,3716.7,0.9434]
[1753493963255,0.1344,3716.8,3716.6,0.7977]
[1753493963816,0.1344,3716.8,3716.7,0.9434]
[1753493972362,0.1344,3716.8,3716.5,1.14290523]
[1753493972659,0.1344,3716.8,3716.6,0.9434]
[1753493974167,0.1344,3716.8,3716.4,0.7873]
[1753493974323,0.6093,3716.8,3716.5,0.4715]
[1753493974522,0.4749,3716.8,3716.5,0.4715]
[1753493974836,0.1344,3716.6,3716.5,0.9434]
[1753493979557,0.1344,3716.6,3716.2,2.69089889]
[1753493979758,0.6093,3716.6,3716.2,2.69089889]
[1753493979960,0.6093,3716.6,3716.2,2.69091361]
[1753493980263,0.69348377,3716.6,3716.0,0.97486844]
[1753493980467,0.1344,3716.3,3716.0,1.44676844]
[1753493980666,0.1344,3716.3,3716.1,0.9434]
[1753493981181,0.1344,3716.3,3716.2,0.9434]
[1753493981654,2.82530863,3716.3,3716.1,0.9434]
[1753493981964,0.1344,3716.3,3716.1,0.9434]
[1753493982162,2.82530903,3716.3,3716.1,0.9434]
[1753493982364,2.82530903,3716.3,3716.2,0.4715]
[1753493982530,2.82530903,3716.3,3716.2,0.9434]
[1753493982857,5.26230903,3716.3,3716.2,0.9434]
[1753493983165,5.26230903,3716.3,3716.0,1.44676844]
[1753493983459,2.69092083,3716.2,3716.1,0.4715]
[1753493983979,2.69099324,3716.1,3715.9,0.4715]
[1753493984174,3.1658353,3716.2,3715.9,0.9434]
[1753493984386,2.69103778,3716.1,3715.9,0.9434]
[1753493984738,2.69106566,3716.0,3715.9,0.9434]
[1753493984937,2.69101414,3716.1,3715.9,0.4715]
[1753493985768,3.16583267,3716.2,3715.9,0.9434]
[1753493985933,2.69093267,3716.2,3715.8,0.20339249]
[1753493986266,5.26226157,3716.3,3716.0,0.9434]
[1753493986468,5.73716157,3716.3,3716.0,0.9434]
[1753493986767,2.69092822,3716.2,3716.0,0.9434]
[1753493987346,5.7371586,3716.3,3716.0,0.9434]
[1753493988976,5.2622586,3716.3,3715.8,0.20452323]
[1753493989177,0.4749,3716.2,3715.8,0.9434]
[1753493989375,0.4749,3716.2,3715.9,0.9434]
[1753493990080,5.2622586,3716.3,3716.0,0.9464]
[1753493990600,5.7187586,3716.3,3716.0,0.9464]
[1753493991877,3.0279,3716.3,3716.0,0.9464]
[1753493992683,5.71875007,3716.3,3716.0,0.9464]
[1753493993760,5.71875007,3716.3,3716.0,0.4583]
[1753493995003,3.0279,3716.3,3716.0,0.4583]
[1753493995195,5.71874851,3716.3,3716.0,0.4583]
[1753493995393,0.4565,3716.2,3715.8,0.19728339]
[1753493995599,0.4565,3716.2,3715.7,7.02566857]
[1753493995908,0.4565,3716.2,3715.9,0.9464]
[1753493997010,5.26224891,3716.3,3715.9,0.9464]
[1753493997011,2.5714,3716.3,3715.9,0.9464]
[1753493997308,3.0279,3716.3,3716.0,0.9464]
[1753493999572,2.69094213,3716.2,3715.7,4.53380363]
[1753493999902,0.4565,3716.1,3715.7,5.48020363]
[1753494000083,6.68222247,3716.3,3715.7,4.53380363]
[1753494000283,6.68222247,3716.3,3715.7,4.99210363]
[1753494000483,2.69095471,3716.2,3715.8,0.4881]
[1753494000680,1.43931261,3716.2,3715.8,0.9464]
[1753494000916,4.13023976,3716.2,3715.8,0.9464]
[1753494001206,0.8207,3716.1,3715.7,0.1344]
[1753494001420,0.1344,3715.8,3715.3,6.49234638]
[1753494001706,0.1344,3715.8,3715.4,0.9464]
[1753494001908,0.1344,3715.8,3715.5,0.9464]
[1753494002119,2.437,3716.1,3715.7,0.7812]
[1753494002283,2.437,3716.1,3715.9,3.03404638]
[1753494002676,2.73979,3716.1,3715.7,0.7812]
[1753494002871,0.1344,3715.9,3715.4,3.1344]
[1753494003075,0.4565,3715.8,3715.5,0.4583]
[1753494003311,0.4565,3715.8,3715.5,0.9464]
[1753494003519,0.1344,3715.9,3715.5,2.69141911]
[1753494003676,0.5909,3715.9,3715.6,0.9464]
[1753494008620,0.5909,3715.9,3715.6,3.98044638]
[1753494010217,0.1344,3715.9,3715.6,3.03404638]
[1753494010441,0.5909,3715.9,3715.6,3.03404638]
[1753494010604,0.1344,3715.9,3715.7,0.9464]
[1753494023624,0.1344,3715.9,3715.6,2.69134858]
[1753494023830,0.1344,3715.9,3715.8,0.9252]
[1753494026042,0.1344,3715.9,3715.8,5.72525688]
[1753494026246,2.437,3716.3,3715.8,6.65045688]
[1753494026410,2.5714,3716.3,3715.8,2.8256105]
[1753494026610,2.5714,3716.3,3716.2,3.03404638]
[1753494026911,2.5714,3716.3,3716.2,3.95924638]
[1753494027123,2.69047055,3716.9,3716.2,5.72496721]
[1753494027333,0.1344,3716.5,3716.2,3.95924638]
[1753494027614,0.1344,3716.5,3716.3,0.9252]
[1753494030143,2.437,3716.6,3716.4,0.9252]
[1753494030444,0.1344,3716.7,3716.5,3.95924638]
[1753494030754,0.1344,3716.7,3716.6,0.9252]
[1753494031041,0.1344,3716.7,3716.4,2.69075826]
[1753494031243,0.1344,3716.7,3716.5,3.95924638]
[1753494031635,0.4392,3716.7,3716.5,3.48944638]
[1753494031834,0.9168,3716.7,3716.5,3.48944638]
[1753494032060,0.4392,3716.7,3716.5,3.48944638]
[1753494032261,0.4392,3716.7,3716.5,3.95924638]
[1753494033275,0.4392,3716.7,3716.5,3.48944638]
[1753494033640,0.4392,3716.7,3716.5,3.95924638]
[1753494035571,0.9168,3716.7,3716.5,3.03404638]
[1753494037383,0.4392,3716.7,3716.5,3.03404638]
[1753494037534,0.4392,3716.7,3716.5,3.95924638]
[1753494039575,0.4392,3716.7,3716.5,3.48944638]
[1753494040274,0.4392,3716.7,3716.5,3.95924638]
[1753494041867,0.4392,3716.7,3716.6,0.4554]
[1753494042075,0.4392,3716.7,3716.6,0.9252]
[1753494042369,0.1344,3716.7,3716.6,0.9252]
[1753494044445,0.1344,3716.7,3716.4,3.95924638]
[1753494044782,0.1344,3716.7,3716.5,0.9252]
[1753494049383,2.82496071,3716.7,3716.2,4.3344]
[1753494049542,1.51663607,3716.6,3716.2,4.2]
[1753494049743,1.08223607,3716.6,3716.2,4.2]
[1753494049950,2.5704,3716.7,3716.3,0.9252]
[1753494050246,3.029,3716.7,3716.3,0.9252]
[1753494050465,2.5704,3716.7,3716.3,0.9252]
[1753494050697,0.4586,3716.6,3716.3,0.9252]
[1753494051457,2.5704,3716.7,3716.2,6.89090149]
[1753494051655,0.4586,3716.6,3716.2,5.125]
[1753494051961,0.4586,3716.6,3716.2,0.925]
[1753494052338,0.4586,3716.6,3716.3,0.4343]
[1753494053355,3.2184628,3716.7,3716.2,3.18162068]
[1753494053560,0.9218,3716.6,3716.2,0.55]
[1753494053750,1.68342698,3716.5,3716.2,0.55]
[1753494054169,0.9218,3716.4,3716.2,0.55]
[1753494054683,0.4586,3716.3,3716.2,0.55]
[1753494055062,0.9218,3716.6,3716.2,3.24090842]
[1753494055271,0.9218,3716.6,3716.2,0.55]
[1753494055475,0.9218,3716.5,3716.2,0.55]
[1753494055780,0.4586,3716.4,3716.2,0.55]
[1753494055985,0.9218,3716.4,3716.2,0.55]
[1753494056875,0.4632,3716.4,3716.2,0.55]
[1753494057179,0.4586,3716.3,3716.2,0.55]
[1753494057786,0.4586,3716.5,3716.2,0.55]
[1753494058208,1.16000917,3716.6,3716.2,0.55]
[1753494058390,0.4586,3716.4,3716.2,0.55]
[1753494058591,0.4586,3716.4,3716.2,3.2409036]
[1753494058979,1.15540917,3716.6,3716.2,3.6752036]
[1753494059184,0.4586,3716.5,3716.2,1.475]
[1753494059493,0.9218,3716.5,3716.2,0.55]
[1753494059689,1.22969902,3716.5,3716.2,0.55]
[1753494059904,0.4586,3716.4,3716.2,0.55]
[1753494060564,0.4586,3716.3,3716.2,0.55]
[1753494061070,1.22509902,3716.5,3716.2,0.55]
[1753494061269,0.4586,3716.4,3716.2,0.55]
[1753494064307,0.4586,3716.5,3716.2,1.475]
[1753494065184,0.4586,3716.4,3716.2,0.55]
[1753494065717,0.4586,3716.3,3716.2,0.55]
[1753494071605,0.4586,3716.5,3716.2,0.55]
[1753494071921,0.4586,3716.4,3716.2,0.55]
[1753494072426,0.4586,3716.4,3716.3,3.03404638]
[1753494072600,0.69681799,3716.5,3716.3,3.03404638]
[1753494072802,1.15541799,3716.5,3716.3,3.03404638]
[1753494074011,2.5724,3716.7,3716.4,1.475]
[1753494074207,2.438,3716.7,3716.4,1.475]
[1753494074524,2.8966,3716.7,3716.4,3.73147323]
[1753494074724,0.4586,3716.6,3716.4,3.24077323]
[1753494075432,0.4586,3716.6,3716.5,2.69070361]
[1753494076831,2.438,3716.7,3716.5,2.69070361]
[1753494077323,2.8966,3716.7,3716.5,2.69070361]
[1753494078527,0.4586,3716.6,3716.5,2.69070361]
[1753494079334,0.4586,3716.6,3716.4,3.24072535]
[1753494079532,0.4586,3716.5,3716.4,3.24072535]
[1753494079734,2.8966,3716.7,3716.5,2.69069478]
[1753494079934,0.4586,3716.6,3716.5,2.69069478]
[1753494081632,3.2136,3716.7,3716.5,2.69069478]
[1753494081838,3.29957,3716.7,3716.5,2.69069478]
[1753494082135,3.29957,3716.7,3716.4,3.24075311]
[1753494082933,3.29957,3716.7,3716.5,2.69069355]
[1753494083536,3.29957,3716.7,3716.4,3.24075282]
[1753494083841,3.29957,3716.7,3716.4,3.24077229]
[1753494084338,3.29957,3716.7,3716.5,2.69069928]
[1753494084699,0.4816,3716.6,3716.4,3.24075616]
[1753494085137,0.4816,3716.6,3716.5,2.69070361]
[1753494085538,0.4816,3716.6,3716.4,3.24075275]
[1753494085840,0.4816,3716.6,3716.5,2.69070361]
[1753494086042,0.4816,3716.6,3716.4,3.24075759]
[1753494086642,0.4816,3716.6,3716.5,2.69070361]
[1753494087011,0.4816,3716.6,3716.4,3.2407493]
[1753494087844,0.37997,3716.7,3716.4,3.6769493]
[1753494088144,0.86157,3716.7,3716.4,4.1480493]
[1753494089342,0.86157,3716.7,3716.5,2.69070361]
[1753494089643,2.436,3716.8,3716.7,2.69055882]
[1753494089947,2.436,3716.8,3716.7,6.6319052]
[1753494091920,2.436,3716.8,3716.7,3.94134638]
[1753494092130,2.436,3716.8,3716.7,6.6319052]
[1753494092333,2.69304,3716.8,3716.7,6.6319052]
[1753494093651,2.69304,3716.8,3716.7,3.59785882]
[1753494093815,2.69304,3716.8,3716.7,0.9073]
[1753494094455,2.69304,3716.8,3716.7,0.4362]
[1753494095449,2.69304,3716.8,3716.5,1.2233]
[1753494095450,2.69304,3716.8,3716.5,1.6595]
[1753494095655,2.69304,3716.8,3716.7,0.4362]
[1753494096062,2.69304,3716.8,3716.7,0.9073]
[1753494096354,2.69304,3716.8,3716.7,3.59785882]
[1753494098465,2.436,3716.8,3716.7,3.59785882]
[1753494100565,0.8206,3717.8,3716.9,0.55]
[1753494100869,0.1344,3717.7,3717.2,3.58404638]
[1753494101157,0.616,3717.7,3717.4,2.69005056]
[1753494101341,0.73864,3717.6,3717.5,0.2520638]
[1753494101720,0.25704,3717.6,3717.5,0.2520638]
[1753494102345,0.73864,3717.6,3717.5,0.2520638]
[1753494104858,0.25704,3717.6,3717.5,0.2520638]
[1753494106259,0.73864,3717.6,3717.5,0.2520638]
[1753494111190,0.25704,3717.6,3717.5,0.2520638]